fUST/lending_fUST_20241121
["ID","MTS","AMOUNT","RATE_DAILY","PERIOD"]
[342907516,1732200654988,-1659.72,0.00024109,2]
[342907517,1732200654998,-694.49,0.00024109,2]
[342907518,1732200655007,-151.0,0.00024109,7]
[342907519,1732200655017,-151.0,0.00024109,7]
[342907520,1732200655026,-151.0,0.00024109,7]
[342907521,1732200655035,-665.48,0.00024109,2]
[342907522,1732200655045,-761.08,0.00024109,2]
[342907523,1732200655055,-500.0,0.00024109,2]
[342907524,1732200655065,-851.55,0.00024109,2]
[342907525,1732200655074,-151.0,0.00024109,7]
[342907526,1732200655085,-202.0,0.00024164,2]
[342907527,1732200655095,-266.0,0.00024164,2]
[342907528,1732200655107,-155.80361875,0.00024217,2]
[342907529,1732200655116,-160.0,0.00024255,2]
[342907530,1732200655126,-1505.32062865,0.00024382,2]
[342907531,1732200655136,-500.0,0.00024383,2]
[342907532,1732200655145,-500.0,0.00024383,2]
[342907533,1732200655154,-500.0,0.00024383,2]
[342907534,1732200655164,-500.0,0.00024383,2]
[342907535,1732200655174,-500.0,0.00024383,2]
[342907536,1732200655183,-151.0,0.00024383,7]
[342907537,1732200655192,-500.0,0.00024383,2]
[342907538,1732200655202,-500.0,0.00024383,2]
[342907539,1732200655212,-151.0,0.00024383,7]
[342907540,1732200655221,-151.0,0.00024383,7]
[342907541,1732200655230,-830.16,0.00024383,2]
[342907542,1732200655239,-500.0,0.00024383,2]
[342907543,1732200655249,-1591.45,0.00024383,2]
[342907544,1732200655259,-151.0,0.00024383,7]
[342907545,1732200655268,-500.0,0.00024383,2]
[342907546,1732200655277,-500.0,0.00024383,2]
[342907547,1732200655287,-500.0,0.00024383,2]
[342907548,1732200655296,-1349.72,0.00024383,2]
[342907549,1732200655306,-532.05,0.00024383,2]
[342907550,1732200655315,-500.0,0.00024383,2]
[342907551,1732200655325,-526.2,0.00024383,2]
[342907552,1732200655334,-500.0,0.00024383,2]
[342907553,1732200655345,-500.0,0.00024383,2]
[342907554,1732200655359,-500.0,0.00024383,2]
[342907555,1732200655368,-505.05,0.00024383,2]
[342907556,1732200655377,-753.89,0.00024383,2]
[342907557,1732200655386,-525.0,0.00024383,2]
[342907558,1732200655395,-399.81401849,0.00024383,2]
[342907559,1732200655404,-791.56,0.00024383,2]
[342907560,1732200655414,-568.28,0.00024383,2]
[342907561,1732200655423,-500.0,0.00024383,2]
[342907562,1732200655433,-500.0,0.00024383,2]
[342907563,1732200655442,-500.0,0.00024383,2]
[342907564,1732200655452,-867.92,0.00024383,2]
[342907565,1732200655462,-500.0,0.00024383,2]
[342907566,1732200655471,-500.0,0.00024383,2]
[342907567,1732200655481,-500.0,0.00024383,2]
[342907568,1732200655490,-1155.56,0.00024383,2]
[342907569,1732200655499,-2432.92,0.00024383,2]
[342907570,1732200655509,-500.0,0.00024383,2]
[342907571,1732200655518,-500.0,0.00024383,2]
[342907572,1732200655527,-500.0,0.00024383,2]
[342907573,1732200655537,-680.26,0.00024383,2]
[342907574,1732200655547,-548.89,0.00024383,2]
[342907575,1732200655557,-500.0,0.00024383,2]
[342907576,1732200655567,-1175.23,0.00024383,2]
[342907577,1732200655576,-616.6,0.00024383,2]
[342907578,1732200655586,-1310.86,0.00024383,2]
[342907579,1732200655595,-550.87,0.00024383,2]
[342907580,1732200655609,-500.0,0.00024383,2]
[342907581,1732200655618,-500.0,0.00024383,2]
[342907582,1732200655628,-765.85,0.00024383,2]
[342907583,1732200655637,-490.37895747,0.00024383,2]
[342907584,1732200655647,-500.0,0.00024383,2]
[342907585,1732200655656,-500.0,0.00024383,2]
[342907586,1732200655665,-500.0,0.00024383,2]
[342907587,1732200655674,-789.24,0.00024383,2]
[342907588,1732200655684,-737.63,0.00024383,2]
[342907589,1732200655693,-655.02,0.00024383,2]
[342907590,1732200655703,-500.0,0.00024383,2]
[342907591,1732200655712,-1000.0,0.00024383,2]
[342907592,1732200655721,-1193.82,0.00024383,2]
[342907593,1732200655730,-500.0,0.00024383,2]
[342907594,1732200655739,-886.97,0.00024383,2]
[342907595,1732200655748,-500.0,0.00024383,2]
[342907596,1732200655757,-770.17,0.00024383,2]
[342907597,1732200655766,-500.0,0.00024383,2]
[342907598,1732200655776,-1753.88,0.00024383,2]
[342907599,1732200655875,-500.0,0.00024383,2]
[342907600,1732200655885,-1377.26,0.00024383,2]
[342907601,1732200655894,-500.0,0.00024383,2]
[342907602,1732200655904,-657.32,0.00024383,2]
[342907603,1732200655913,-1508.12,0.00024383,2]
[342907604,1732200655923,-1026.92,0.00024383,2]
[342907605,1732200655932,-227.50294956,0.00024383,2]
[342907606,1732200655941,-851.18,0.00024383,2]
[342907607,1732200655951,-1370.61,0.00024383,2]
[342907608,1732200655961,-1211.86,0.00024383,2]
[342907609,1732200655970,-500.0,0.00024383,2]
[342907610,1732200655980,-795.82,0.00024383,2]
[342907611,1732200655989,-653.45,0.00024383,2]
[342907612,1732200655999,-1390.24,0.00024383,2]
[342907613,1732200656008,-500.0,0.00024383,2]
[342907614,1732200656018,-500.0,0.00024383,2]
[342907615,1732200656027,-645.33,0.00024383,2]
[342907616,1732200656037,-500.0,0.00024383,2]
[342907617,1732200656046,-500.0,0.00024383,2]
[342907618,1732200656056,-500.0,0.00024383,2]
[342907619,1732200656066,-500.0,0.00024383,2]
[342907620,1732200656075,-500.0,0.00024383,2]
[342907621,1732200656087,-500.0,0.00024383,2]
[342907622,1732200656096,-928.36,0.00024383,2]
[342907623,1732200656109,-619.54,0.00024383,2]
[342907624,1732200656119,-574.43,0.00024383,2]
[342907625,1732200656130,-656.62,0.00024383,2]
[342907626,1732200656139,-500.0,0.00024383,2]
[342907627,1732200656148,-793.51,0.00024383,2]
[342907628,1732200656159,-500.0,0.00024383,2]
[342907629,1732200656169,-568.25,0.00024383,2]
[342907630,1732200656178,-534.73,0.00024383,2]
[342907631,1732200656187,-509.23,0.00024383,2]
[342907632,1732200656197,-1296.98,0.00024383,2]
[342907633,1732200656206,-1003.66,0.00024383,2]
[342907634,1732200656215,-981.68,0.00024383,2]
[342907635,1732200656225,-927.61,0.00024383,2]
[342907636,1732200656235,-925.44,0.00024383,2]
[342907637,1732200656245,-500.0,0.00024383,2]
[342907638,1732200656255,-752.78,0.00024383,2]
[342907639,1732200656264,-500.23,0.00024383,2]
[342907640,1732200656273,-500.0,0.00024383,2]
[342907641,1732200656283,-535.24,0.00024383,2]
[342907642,1732200656292,-500.0,0.00024383,2]
[342907643,1732200656301,-1249.29,0.00024383,2]
[342907644,1732200656311,-1383.2,0.00024383,2]
[342907645,1732200656321,-701.33,0.00024383,2]
[342907646,1732200656330,-826.31,0.00024383,2]
[342907647,1732200656340,-1189.47,0.00024383,2]
[342907648,1732200656352,-10039.04,0.00024383,2]
[342907649,1732200656361,-807.4,0.00024383,2]
[342907650,1732200656370,-1630.93,0.00024383,2]
[342907651,1732200656379,-500.0,0.00024383,2]
[342907652,1732200656389,-795.38,0.00024383,2]
[342907653,1732200656398,-500.0,0.00024383,2]
[342907654,1732200656407,-5687.01,0.00024383,2]
[342907655,1732200656416,-1357.59,0.00024383,2]
[342907656,1732200656425,-500.0,0.00024383,2]
[342907657,1732200656435,-4042.62,0.00024383,2]
[342907658,1732200656444,-500.0,0.00024383,2]
[342907659,1732200656453,-32605.67,0.00024383,2]
[342907660,1732200656462,-500.0,0.00024383,2]
[342907661,1732200656471,-594.83,0.00024383,2]
[342907662,1732200656480,-634.91,0.00024383,2]
[342907663,1732200656489,-500.0,0.00024383,2]
[342907664,1732200656499,-500.0,0.00024383,2]
[342907665,1732200656508,-500.0,0.00024383,2]
[342907666,1732200656518,-500.0,0.00024383,2]
[342907667,1732200656527,-505.73,0.00024383,2]
[342907668,1732200656536,-858.69,0.00024383,2]
[342907669,1732200656545,-612.48,0.00024383,2]
[342907670,1732200656554,-2090.7,0.00024383,2]
[342907671,1732200656563,-604.76,0.00024383,2]
[342907672,1732200656573,-5650.4,0.00024383,2]
[342907673,1732200656583,-500.0,0.00024383,2]
[342907674,1732200656592,-3018.72,0.00024383,2]
[342907675,1732200656603,-500.0,0.00024383,2]
[342907676,1732200656613,-500.0,0.00024383,2]
[342907677,1732200656622,-1242.48,0.00024383,2]
[342907678,1732200656631,-500.0,0.00024383,2]
[342907679,1732200656641,-7102.02,0.00024383,2]
[342907680,1732200656650,-540.06855007,0.00024383,2]
[342907681,1732200656660,-731.24,0.00024383,2]
[342907682,1732200656675,-1955.78,0.00024383,2]
[342907683,1732200656685,-1391.16,0.00024383,2]
[342907684,1732200656694,-1504.17,0.00024383,2]
[342907685,1732200656703,-1389.53,0.00024383,2]
[342907686,1732200656713,-500.0,0.00024383,2]
[342907687,1732200656723,-1229.83,0.00024383,2]
[342907688,1732200656733,-1659.72,0.00024383,2]
[342907689,1732200656741,-694.49,0.00024383,2]
[342907690,1732200656751,-665.48,0.00024383,2]
[342907691,1732200656760,-761.08,0.00024383,2]
[342907692,1732200656769,-500.0,0.00024383,2]
[342907693,1732200656779,-851.55,0.00024383,2]
[342907694,1732200656788,-339.40065395,0.000244,2]
[342907695,1732200656798,-237.0,0.0002449,4]
[342907696,1732200656807,-1500.0,0.00024622,2]
[342907697,1732200656816,-633.37677614,0.00024622,2]
[342907698,1732200656825,-530.0,0.00024645,2]
[342907699,1732200656834,-1106.0,0.00024645,2]
[342907700,1732200656843,-2382.0,0.00024645,2]
[342907701,1732200656855,-258.45686901,0.00024649,2]
[342907702,1732200656864,-500.0,0.00024657,2]
[342907703,1732200656874,-500.0,0.00024657,2]
[342907704,1732200656883,-500.0,0.00024657,2]
[342907705,1732200656892,-500.0,0.00024657,2]
[342907706,1732200656901,-500.0,0.00024657,2]
[342907707,1732200656910,-500.0,0.00024657,2]
[342907708,1732200656920,-500.0,0.00024657,2]
[342907709,1732200656929,-830.16,0.00024657,2]
[342907710,1732200656939,-500.0,0.00024657,2]
[342907711,1732200656949,-1591.45,0.00024657,2]
[342907712,1732200656958,-500.0,0.00024657,2]
[342907713,1732200656968,-200.0,0.00024657,2]
[342907714,1732200656977,-200.0,0.00024657,2]
[342907715,1732200656987,-200.0,0.00024657,2]
[342907716,1732200656996,-200.0,0.00024657,2]
[342907717,1732200657005,-200.0,0.00024657,2]
[342907718,1732200657014,-200.0,0.00024657,2]
[342907719,1732200657024,-200.0,0.00024657,2]
[342907720,1732200657033,-200.0,0.00024657,2]
[342907721,1732200657042,-200.0,0.00024657,2]
[342907722,1732200657052,-200.0,0.00024657,2]
[342907723,1732200657061,-200.0,0.00024657,2]
[342907724,1732200657070,-500.0,0.00024657,2]
[342907725,1732200657085,-500.0,0.00024657,2]
[342907726,1732200657094,-1349.72,0.00024657,2]
[342907727,1732200657106,-532.05,0.00024657,2]
[342907728,1732200657115,-500.0,0.00024657,2]
[342907729,1732200657126,-526.2,0.00024657,2]
[342907730,1732200657135,-500.0,0.00024657,2]
[342907731,1732200657144,-500.0,0.00024657,2]
[342907732,1732200657154,-500.0,0.00024657,2]
[342907733,1732200657164,-505.05,0.00024657,2]
[342907734,1732200657174,-753.89,0.00024657,2]
[342907735,1732200657183,-525.0,0.00024657,2]
[342907736,1732200657192,-791.56,0.00024657,2]
[342907737,1732200657201,-568.28,0.00024657,2]
[342907738,1732200657211,-500.0,0.00024657,2]
[342907739,1732200657222,-500.0,0.00024657,2]
[342907740,1732200657233,-500.0,0.00024657,2]
[342907741,1732200657242,-867.92,0.00024657,2]
[342907742,1732200657251,-500.0,0.00024657,2]
[342907743,1732200657260,-500.0,0.00024657,2]
[342907744,1732200657269,-500.0,0.00024657,2]
[342907745,1732200657279,-1155.56,0.00024657,2]
[342907746,1732200657288,-2432.92,0.00024657,2]
[342907747,1732200657297,-500.0,0.00024657,2]
[342907748,1732200657308,-564.06652847,0.00024657,2]
[342907749,1732200657319,-500.0,0.00024657,2]
[342907750,1732200657328,-680.26,0.00024657,2]
[342907751,1732200657338,-500.0,0.00024657,2]
[342907752,1732200657434,-1175.23,0.00024657,2]
[342907753,1732200657444,-616.6,0.00024657,2]
[342907754,1732200657454,-1310.86,0.00024657,2]
[342907755,1732200657463,-550.87,0.00024657,2]
[342907756,1732200657473,-500.0,0.00024657,2]
[342907757,1732200657483,-514.33958533,0.00024657,2]
[342907758,1732200657492,-765.85,0.00024657,2]
[342907759,1732200657502,-500.0,0.00024657,2]
[342907760,1732200657512,-500.0,0.00024657,2]
[342907761,1732200657521,-500.0,0.00024657,2]
[342907762,1732200657530,-789.24,0.00024657,2]
[342907763,1732200657539,-737.63,0.00024657,2]
[342907764,1732200657550,-655.02,0.00024657,2]
[342907765,1732200657559,-500.0,0.00024657,2]
[342907766,1732200657568,-1000.0,0.00024657,2]
[342907767,1732200657578,-1193.82,0.00024657,2]
[342907768,1732200657587,-500.0,0.00024657,2]
[342907769,1732200657597,-886.97,0.00024657,2]
[342907770,1732200657612,-500.0,0.00024657,2]
[342907771,1732200657621,-770.17,0.00024657,2]
[342907772,1732200657631,-254.178626,0.00024657,7]
[342907773,1732200657640,-500.0,0.00024657,2]
[342907774,1732200657649,-151.0,0.00024657,7]
[342907775,1732200657659,-500.0,0.00024657,4]
[342907776,1732200657668,-1753.88,0.00024657,2]
[342907777,1732200657677,-500.0,0.00024657,2]
[342907778,1732200657686,-1377.26,0.00024657,2]
[342907779,1732200657696,-500.0,0.00024657,2]
[342907780,1732200657705,-657.32,0.00024657,2]
[342907781,1732200657714,-151.0,0.00024657,7]
[342907782,1732200657724,-1508.12,0.00024657,2]
[342907783,1732200657733,-1026.92,0.00024657,2]
[342907784,1732200657743,-151.0,0.00024657,7]
[342907785,1732200657752,-851.18,0.00024657,2]
[342907786,1732200657762,-151.0,0.00024657,7]
[342907787,1732200657771,-1370.61,0.00024657,2]
[342907788,1732200657780,-1211.86,0.00024657,2]
[342907789,1732200657790,-500.0,0.00024657,2]
[342907790,1732200657800,-795.82,0.00024657,2]
[342907791,1732200657810,-653.45,0.00024657,2]
[342907792,1732200657819,-1390.24,0.00024657,2]
[342907793,1732200657829,-500.0,0.00024657,2]
[342907794,1732200657838,-500.0,0.00024657,2]
[342907795,1732200657848,-645.33,0.00024657,2]
[342907796,1732200657862,-542.18884881,0.00024657,2]
[342907797,1732200657871,-151.0,0.00024657,7]
[342907798,1732200657880,-500.0,0.00024657,2]
[342907799,1732200657890,-417.95307529,0.00024657,2]
[342907800,1732200657912,-500.0,0.00024657,2]
[342907801,1732200657922,-500.0,0.00024657,2]
[342907802,1732200657932,-500.0,0.00024657,2]
[342907803,1732200657943,-928.36,0.00024657,2]
[342907804,1732200657954,-151.0,0.00024657,7]
[342907805,1732200657966,-267.853064,0.00024657,7]
[342907806,1732200657976,-574.43,0.00024657,2]
[342907807,1732200657986,-619.54,0.00024657,2]
[342907808,1732200657996,-656.62,0.00024657,2]
[342907809,1732200658006,-500.0,0.00024657,2]
[342907810,1732200658015,-793.51,0.00024657,2]
[342907811,1732200658026,-500.0,0.00024657,2]
[342907812,1732200658036,-151.0,0.00024657,7]
[342907813,1732200658046,-568.25,0.00024657,2]
[342907814,1732200658056,-534.73,0.00024657,2]
[342907815,1732200658067,-509.23,0.00024657,2]
[342907816,1732200658078,-1296.98,0.00024657,2]
[342907817,1732200658090,-1003.66,0.00024657,2]
[342907818,1732200658103,-981.68,0.00024657,2]
[342907819,1732200658114,-927.61,0.00024657,2]
[342907820,1732200658124,-925.44,0.00024657,2]
[342907821,1732200658134,-500.0,0.00024657,2]
[342907822,1732200658143,-752.78,0.00024657,2]
[342907823,1732200658152,-500.23,0.00024657,2]
[342907824,1732200658165,-500.0,0.00024657,2]
[342907825,1732200658175,-535.24,0.00024657,2]
[342907826,1732200658185,-500.0,0.00024657,2]
[342907827,1732200658196,-1249.29,0.00024657,2]
[342907828,1732200658206,-1383.2,0.00024657,2]
[342907829,1732200658216,-701.33,0.00024657,2]
[342907830,1732200658225,-151.0,0.00024657,7]
[342907831,1732200658235,-826.31,0.00024657,2]
[342907832,1732200658245,-256.48103,0.00024657,7]
[342907833,1732200658255,-1189.47,0.00024657,2]
[342907834,1732200658265,-10039.04,0.00024657,2]
[342907835,1732200658275,-807.4,0.00024657,2]
[342907836,1732200658284,-1630.93,0.00024657,2]
[342907837,1732200658293,-500.0,0.00024657,2]
[342907838,1732200658303,-795.38,0.00024657,2]
[342907839,1732200658313,-500.0,0.00024657,2]
[342907840,1732200658323,-5687.01,0.00024657,2]
[342907841,1732200658333,-1357.59,0.00024657,2]
[342907842,1732200658343,-500.0,0.00024657,2]
[342907843,1732200658357,-151.0,0.00024657,7]
[342907844,1732200658367,-493.456751,0.00024657,7]
[342907845,1732200658377,-4042.62,0.00024657,2]
[342907846,1732200658387,-192.02805693,0.00024657,2]
[342907847,1732200658397,-493.456751,0.00024657,7]
[342907848,1732200658407,-500.0,0.00024657,2]
[342907849,1732200658416,-32605.67,0.00024657,2]
[342907850,1732200658427,-151.0,0.00024657,7]
[342907851,1732200658437,-594.83,0.00024657,2]
[342907852,1732200658447,-634.91,0.00024657,2]
[342907853,1732200658457,-500.0,0.00024657,2]
[342907854,1732200658466,-507.8082641,0.00024657,2]
[342907855,1732200658476,-500.0,0.00024657,2]
[342907856,1732200658486,-500.0,0.00024657,2]
[342907857,1732200658496,-505.73,0.00024657,2]
[342907858,1732200658506,-858.69,0.00024657,2]
[342907859,1732200658516,-612.48,0.00024657,2]
[342907860,1732200658526,-536.213167,0.00024657,7]
[342907861,1732200658536,-2090.7,0.00024657,2]
[342907862,1732200658546,-604.76,0.00024657,2]
[342907863,1732200658557,-5650.4,0.00024657,2]
[342907864,1732200658566,-536.213167,0.00024657,7]
[342907865,1732200658576,-151.0,0.00024657,7]
[342907866,1732200658587,-500.0,0.00024657,2]
[342907867,1732200658596,-3018.72,0.00024657,2]
[342907868,1732200658610,-500.0,0.00024657,2]
[342907869,1732200658619,-500.0,0.00024657,2]
[342907870,1732200658628,-1242.48,0.00024657,2]
[342907871,1732200658638,-500.0,0.00024657,2]
[342907872,1732200658647,-7102.02,0.00024657,2]
[342907873,1732200658657,-731.24,0.00024657,2]
[342907874,1732200658666,-1955.78,0.00024657,2]
[342907875,1732200658676,-1391.16,0.00024657,2]
[342907876,1732200658686,-1504.17,0.00024657,2]
[342907877,1732200658696,-1389.53,0.00024657,2]
[342907878,1732200658715,-500.0,0.00024657,2]
[342907879,1732200658727,-1229.83,0.00024657,2]
[342907880,1732200658737,-1659.72,0.00024657,2]
[342907881,1732200658747,-694.49,0.00024657,2]
[342907882,1732200658756,-761.08,0.00024657,2]
[342907883,1732200658769,-665.48,0.00024657,2]
[342907884,1732200658778,-500.0,0.00024657,2]
[342907885,1732200658788,-851.55,0.00024657,2]
[342907886,1732200658797,-200.0,0.00024658,2]
[342907887,1732200658807,-380.0,0.00024658,2]
[342907888,1732200658816,-151.0,0.00024658,7]
[342907889,1732200658826,-151.0,0.00024658,7]
[342907890,1732200658836,-151.0,0.00024658,7]
[342907891,1732200658845,-151.0,0.00024658,7]
[342907892,1732200658857,-231.842353,0.00024658,7]
[342907893,1732200658993,-200.0,0.00024658,15]
[342907894,1732200659003,-9348.05,0.000247,14]
[342907895,1732200659012,-227.1739024,0.0002475,2]
[342907896,1732200659021,-212.5677706,0.0002475,2]
[342907897,1732200659031,-212.5677706,0.0002475,2]
[342907898,1732200659039,-212.5677706,0.0002475,2]
[342907899,1732200659049,-212.5677706,0.0002475,2]
[342907900,1732200659058,-212.5677706,0.0002475,2]
[342907901,1732200659067,-212.5677706,0.0002475,2]
[342907902,1732200659078,-212.5677706,0.0002475,2]
[342907903,1732200659092,-212.5677706,0.0002475,2]
[342907904,1732200659105,-212.5677706,0.0002475,2]
[342907905,1732200659114,-212.5677706,0.0002475,2]
[342907906,1732200659125,-204.108729,0.0002475,2]
[342907907,1732200659135,-75975.23070061,0.000248,2]
[342907908,1732200659144,-151.0,0.000248,7]
[342907909,1732200659153,-389.702846,0.000248,7]
[342907910,1732200659163,-389.702846,0.000248,7]
[342907911,1732200659172,-151.0,0.000248,7]
[342907912,1732200659182,-151.0,0.000248,7]
[342907913,1732200659192,-151.0,0.000248,7]
[342907914,1732200659201,-437.4298168,0.00024884,2]
[342907915,1732200659211,-304.475979,0.00024884,2]
[342907916,1732200659220,-310.0,0.00024906,2]
[342907917,1732200659230,-682.56915921,0.00024931,2]
[342907918,1732200659239,-500.0,0.00024931,2]
[342907919,1732200659251,-500.0,0.00024931,2]
[342907920,1732200659261,-417.70115421,0.00024931,2]
[342907921,1732200659271,-500.0,0.00024931,2]
[342907922,1732200659281,-500.0,0.00024931,2]
[342907923,1732200659291,-500.0,0.00024931,2]
[342907924,1732200659300,-151.0,0.00024931,7]
[342907925,1732200659309,-151.0,0.00024931,7]
[342907926,1732200659318,-830.16,0.00024931,2]
[342907927,1732200659327,-500.0,0.00024931,2]
[342907928,1732200659336,-1591.45,0.00024931,2]
[342907929,1732200659346,-151.0,0.00024931,7]
[342907930,1732200659359,-500.0,0.00024931,2]
[342907931,1732200659369,-200.0,0.00024931,2]
[342907932,1732200659378,-500.0,0.00024931,2]
[342907933,1732200659387,-500.0,0.00024931,2]
[342907934,1732200659396,-1349.72,0.00024931,2]
[342907935,1732200659405,-532.05,0.00024931,2]
[342907936,1732200659415,-500.0,0.00024931,2]
[342907937,1732200659424,-526.2,0.00024931,2]
[342907938,1732200659433,-500.0,0.00024931,2]
[342907939,1732200659444,-500.0,0.00024931,2]
[342907940,1732200659454,-500.0,0.00024931,2]
[342907941,1732200659464,-505.05,0.00024931,2]
[342907942,1732200659475,-753.89,0.00024931,2]
[342907943,1732200659485,-525.0,0.00024931,2]
[342907944,1732200659496,-791.56,0.00024931,2]
[342907945,1732200659507,-568.28,0.00024931,2]
[342907946,1732200659517,-636.34908482,0.00024931,2]
[342907947,1732200659527,-500.0,0.00024931,2]
[342907948,1732200659538,-500.0,0.00024931,2]
[342907949,1732200659547,-867.92,0.00024931,2]
[342907950,1732200659557,-500.0,0.00024931,2]
[342907951,1732200659566,-500.0,0.00024931,2]
[342907952,1732200659575,-500.0,0.00024931,2]
[342907953,1732200659585,-1155.56,0.00024931,2]
[342907954,1732200659595,-2432.92,0.00024931,2]
[342907955,1732200659608,-500.0,0.00024931,2]
[342907956,1732200659618,-500.0,0.00024931,2]
[342907957,1732200659627,-680.26,0.00024931,2]
[342907958,1732200659637,-500.0,0.00024931,2]
[342907959,1732200659646,-1175.23,0.00024931,2]
[342907960,1732200659655,-616.6,0.00024931,2]
[342907961,1732200659666,-1310.86,0.00024931,2]
[342907962,1732200659675,-550.87,0.00024931,2]
[342907963,1732200659685,-500.0,0.00024931,2]
[342907964,1732200659694,-765.85,0.00024931,2]
[342907965,1732200659704,-500.0,0.00024931,2]
[342907966,1732200659713,-500.0,0.00024931,2]
[342907967,1732200659722,-435.36386356,0.00024931,2]
[342907968,1732200659732,-789.24,0.00024931,2]
[342907969,1732200659742,-737.63,0.00024931,2]
[342907970,1732200659752,-655.02,0.00024931,2]
[342907971,1732200659762,-500.0,0.00024931,2]
[342907972,1732200659772,-1000.0,0.00024931,2]
[342907973,1732200659782,-1193.82,0.00024931,2]
[342907974,1732200659791,-500.0,0.00024931,2]
[342907975,1732200659801,-886.97,0.00024931,2]
[342907976,1732200659811,-500.0,0.00024931,2]
[342907977,1732200659820,-770.17,0.00024931,2]
[342907978,1732200659830,-500.0,0.00024931,2]
[342907979,1732200659840,-1753.88,0.00024931,2]
[342907980,1732200659849,-500.0,0.00024931,2]
[342907981,1732200659862,-1377.26,0.00024931,2]
[342907982,1732200659872,-500.0,0.00024931,2]
[342907983,1732200659882,-657.32,0.00024931,2]
[342907984,1732200659892,-1508.12,0.00024931,2]
[342907985,1732200659902,-1026.92,0.00024931,2]
[342907986,1732200659912,-851.18,0.00024931,2]
[342907987,1732200659922,-1370.61,0.00024931,2]
[342907988,1732200659932,-1211.86,0.00024931,2]
[342907989,1732200659942,-500.0,0.00024931,2]
[342907990,1732200659952,-795.82,0.00024931,2]
[342907991,1732200659962,-653.45,0.00024931,2]
[342907992,1732200659972,-1390.24,0.00024931,2]
[342907993,1732200659983,-615.59,0.00024931,2]
[342907994,1732200659993,-500.0,0.00024931,2]
[342907995,1732200660002,-645.33,0.00024931,2]
[342907996,1732200660012,-500.0,0.00024931,2]
[342907997,1732200660023,-500.0,0.00024931,2]
[342907998,1732200660033,-500.0,0.00024931,2]
[342907999,1732200660043,-500.0,0.00024931,2]
[342908000,1732200660053,-928.36,0.00024931,2]
[342908001,1732200660064,-574.43,0.00024931,2]
[342908002,1732200660075,-619.54,0.00024931,2]
[342908003,1732200660099,-656.62,0.00024931,2]
[342908004,1732200660117,-500.0,0.00024931,2]
[342908005,1732200660129,-793.51,0.00024931,2]
[342908006,1732200660140,-500.0,0.00024931,2]
[342908007,1732200660150,-568.25,0.00024931,2]
[342908008,1732200660162,-534.73,0.00024931,2]
[342908009,1732200660172,-509.23,0.00024931,2]
[342908010,1732200660183,-1296.98,0.00024931,2]
[342908011,1732200660194,-1003.66,0.00024931,2]
[342908012,1732200660205,-981.68,0.00024931,2]
[342908013,1732200660216,-927.61,0.00024931,2]
[342908014,1732200660226,-925.44,0.00024931,2]
[342908015,1732200660237,-500.0,0.00024931,2]